Cogmind - Beta 14 @@@ ROGUE MODE // 2024.09.21 @ 15:35:41 Player: Dull Result: Destroyed by as-94178 with Assembled Heavy Rifle Performance ------------- Evolutions (0) 0 Regions Visited (2) 400 Robots Destroyed (27) 135 Value Destroyed (553) 553 Prototype IDs (4) 80 Alien Tech Used (0) 0 Bonus (0) 0 TOTAL SCORE: 1168 Bonus ------- None Cogmind --------- Core Integrity 0/250 Matter 234/300 Energy 310/310 System Corruption 3% Temperature Cool (26) Movement Treading (240) Ox1 Location -10/Mines Parts ------- > --- POWER (1) -------- Fission Core > --- PROPULSION (2) --- Light Treads Light Treads > --- UTILITY (2) ------ High-capacity Storage Unit Visual Processing Unit > --- WEAPON (2) ------- Light Cannon Bore Cannon > --- INVENTORY (20) --- Cooled Ion Engine Cooled Ion Engine Light Treads Light Treads Large Storage Unit High-capacity Matter Pod (94) Sensor Array Improved Terrain Scanner Phase Shifter Hacking Suite Tractor Beam Splice Drone Bay Light Cannon Light Cannon Rocket Launcher Rocket Launcher Rocket Launcher Rocket Launcher Mining Laser Peak State ------------ > --- POWER ------------ Fission Core > --- PROPULSION ------- Light Treads Light Treads > --- UTILITY ---------- High-capacity Storage Unit Visual Processing Unit > --- WEAPON ----------- Light Cannon Bore Cannon > --- INVENTORY -------- Cooled Ion Engine Cooled Ion Engine Cooled Ion Engine Light Treads Light Treads Large Storage Unit High-capacity Matter Pod Sensor Array Improved Terrain Scanner Phase Shifter Hacking Suite Tractor Beam Splice Drone Bay Light Cannon Light Cannon Rocket Launcher Rocket Launcher Rocket Launcher Rocket Launcher Mining Laser [Rating: 20] Favorites ----------- Power Cooled Ion Engine Engine Cooled Ion Engine Power Core Fission Core Propulsion Light Treads Treads Light Treads Leg Aluminum Leg Utility Visual Processing Unit Device Improved Terrain Scanner Storage High-capacity Storage Unit Processor Visual Processing Unit Weapon Light Cannon Ballistic Gun Light Assault Rifle Ballistic Cannon Light Cannon Launcher Rocket Launcher Build | -11 -10 -10 ------- Run | Yrd Mat Min Slots Evolved . | . . . Power . | . . . Propulsion . | . . . Utility . | . . . Weapon . | . . . Parts Attached 25 | 3 19 3 Power 7 | . 6 1 Engine 6 | . 6 . Core 1 | . . 1 Reactor . | . . . Propulsion 5 | 2 2 1 Treads 5 | 2 2 1 Leg . | . . . Wheel . | . . . Hover . | . . . Flight . | . . . Utility 5 | 1 4 . Device 1 | 1 . . Storage 2 | . 2 . Processor 2 | . 2 . Hackware . | . . . Protection . | . . . Artifact . | . . . Weapon 8 | . 7 1 Energy Gun . | . . . Energy Cannon . | . . . Ballistic Gun 2 | . 2 . Ballistic Cannon 5 | . 4 1 Launcher 1 | . 1 . Special Weapon . | . . . Impact Weapon . | . . . Slashing Weapon . | . . . Piercing Weapon . | . . . Special Melee Weapon . | . . . Unidentified Prototypes . | . . . Parts Lost . | . . . Power . | . . . Propulsion . | . . . Utility . | . . . Weapon . | . . . Highest Loss Streak . | . . . To Critical Strikes . | . . . Average Slot Usage (%) 99 | . 99 99 Engine 13 | . 14 12 Treads 27 | . 27 27 Storage 14 | . 14 14 Processor 13 | . 13 14 Ballistic Gun 7 | . 13 . Ballistic Cannon 19 | . 14 28 Peak Build Rating 20 | 9 14 20 Average Rating 11 | 6 9 14 On Entrance 9 | 6 9 13 Naked Turns . | . . . Heaviest Build 62 | 11 55 62 Greatest Support 40 | 40 40 40 Greatest Overweight (x) 2 | . 1 2 Average Overweight (x) . | . . 1 Largest Inventory Capacity 20 | 8 20 20 Average Capacity 15 | 8 12 20 Most Carried 20 | 6 20 20 Average Carried 14 | 5 10 19 Final Capacity 20 | 8 20 20 Final Carried 20 | 2 20 19 Class Distribution -------------------- 96% | Mutant 3% | Scavenger-Mutant Dominant Class ---------------- Mutant | -10/Materials Mutant | -10/Mines Resources | -11 -10 -10 ----------- Run | Yrd Mat Min Matter Collected 1131 | 244 459 428 Remotely . | . . . Salvage Created 844 | 142 621 81 Parts 55 | 7 48 . Haulers Intercepted 2 | . 2 . Recyclers Shooed 2 | 1 1 . Parts Field Recycled . | . . . Retrieved Matter . | . . . Parts Self-Destructed . | . . . Prevented . | . . . Kills | -11 -10 -10 ------- Run | Yrd Mat Min Combat Hostiles Destroyed 25 | . 16 9 Guns 10 | . 10 . Cannons 15 | . 6 9 Classes Destroyed 9 | 2 6 1 Builder 1 | . 1 . Tunneler 2 | 2 . . Hauler 2 | . 2 . Recycler 1 | 1 . . Operator 1 | . 1 . Watcher 3 | . 3 . Swarmer 6 | . 6 . Grunt 11 | . 10 1 Assembled 8 | . . 8 Best Kill Streak 4 | 2 3 4 Combat Bots Only 4 | . 3 4 Max Kills in Single Turn 1 | 1 1 1 Gunslinging . | . . . Exploded . | . . . Melee . | . . . Uniques/NPCs Destroyed . | . . . Combat | -11 -10 -10 -------- Run | Yrd Mat Min Hostile Shots Fired 109 | . 78 31 Missed 35 | . 24 11 Damage Taken 910 | . 552 358 Core 262 | . 144 118 Absorbed by Shields . | . . . Regen/Repaired (Parts) 107 | . 107 . Core Remaining (%) 100 | 100 . . Volleys Fired 106 | 8 72 26 Largest 2 | 2 2 2 Hottest 92 | 40 70 92 Shots Fired 213 | 16 144 53 Gun 116 | 16 100 . Cannon 96 | . 43 53 Launcher 1 | . 1 . Special . | . . . Kinetic 212 | 16 143 53 Thermal . | . . . Explosive 1 | . 1 . Electromagnetic . | . . . Robot Hit Streak 13 | 6 13 4 Robot Miss Streak 5 | 2 5 4 Penetration Max . | . . . Secondary Targets . | . . . Shots Hit Robots 109 | 11 74 24 Core Hits 55 | 5 39 11 Critical Kills 2 | . . 2 Critical Parts Destroyed 1 | . . 1 Critical Strikes 6 | . 3 3 Destroy 3 | . . 3 Blast 3 | . 3 . Melee Attacks . | . . . Impact . | . . . Slashing . | . . . Piercing . | . . . Sneak Attacks . | . . . Combat Hostiles . | . . . Follow-up Attacks . | . . . Damage Inflicted 1480 | 99 934 447 Guns 590 | 99 491 . Cannons 877 | . 430 447 Explosions . | . . . Melee . | . . . Ramming 13 | . 13 . Kinetic 1467 | 99 921 447 Thermal . | . . . Explosive . | . . . Electromagnetic . | . . . Impact . | . . . Slashing . | . . . Piercing . | . . . Highest Corruption 3 | . 3 3 Average Corruption 2 | . 2 3 Corruption Purged . | . . . Corruption Blocked . | . . . Effects 28 | . 9 19 Message Errors 2 | . . 2 Matter Fused 7 | . 1 6 Heat Flow Errors 3 | . 1 2 Energy Discharges 4 | . 1 3 Data Loss (minor) 7 | . 4 3 Data Loss (major) 3 | . 1 2 Misfires 2 | . 1 1 Overload Shots . | . . . Overflow Damage 17 | . . 17 Projectiles 17 | . . 17 Explosions . | . . . Melee . | . . . Knockbacks 16 | . 7 9 Impact . | . . . Kinetic 16 | . 7 9 Secondary . | . . . Self-Inflicted Damage . | . . . Shots . | . . . Rammed 4 | . 4 . Targets Rammed 5 | 1 4 . Kicked 1 | 1 . . Crushed . | . . . Highest Temperature 156 | . 127 156 Average Temperature 29 | . 19 36 Received Heat Transfer 231 | . 231 . Siege Activations . | . . . Robots Corrupted . | . . . Combat Hostiles . | . . . Parts Fried . | . . . Impact Corruptions . | . . . Robots Melted . | . . . Combat Hostiles . | . . . Parts Melted . | . . . Heat Transferred . | . . . Parts Sabotaged . | . . . Parts Stolen . | . . . Parts Stripped . | . . . Power Chain Reactions . | . . . Alert | -11 -10 -10 ------- Run | Yrd Mat Min Peak Influence 189 | 15 189 51 Initial 9 | . 9 2 Average 37 | 9 53 16 Maximum Alert Level . | . . . Low Security (%) 100 | 100 100 100 Level 1 . | . . . Level 2 . | . . . Level 3 . | . . . Level 4 . | . . . Level 5 . | . . . High Security . | . . . Max Security . | . . . Squads Dispatched 2 | . 2 . Investigation 1 | . 1 . Extermination . | . . . Reinforcement 1 | . 1 . Assault . | . . . Garrison . | . . . Intercept . | . . . Searches Triggered . | . . . Construction Impeded . | . . . Haulers Reinforced . | . . . Active Scanning Responses . | . . . Cargo Convoy Interrupts . | . . . Stealth | -11 -10 -10 --------- Run | Yrd Mat Min Distress Signals 1 | . 1 . Communications Jammed . | . . . Distress Signals . | . . . Times Spotted 37 | . 26 11 Peak Tracking Total 3 | . 3 3 Tactical Retreats 4 | . 2 2 Traps | -11 -10 -10 ------- Run | Yrd Mat Min Traps Triggered 3 | . 3 . Indirectly . | . . . Trap Hack Attempts . | . . . Triggered . | . . . Disarmed . | . . . Reprogrammed . | . . . Reused . | . . . Traps Extracted . | . . . Installed . | . . . Triggered 4 | . . 4 Machines | -11 -10 -10 ---------- Run | Yrd Mat Min Machines Disabled 1 | . . 1 Max in Single Turn 1 | . . 1 Machines Repaired . | . . . Machines Dismantled . | . . . Machines Sabotaged . | . . . Overloaded Fab Kills . | . . . Hacking | -11 -10 -10 --------- Run | Yrd Mat Min Machines Accessed 10 | . 9 1 Terminals 7 | . 7 . Fabricators . | . . . Repair Stations 1 | . 1 . Recycling Units 1 | . 1 . Scanalyzers . | . . . Garrison Access . | . . . Total Hacks 35 | . 34 1 Successful 18 | . 17 1 Failed 16 | . 16 . Catastrophic 1 | . 1 . Database Lockouts 1 | . 1 . Manual 25 | . 25 . Terminals 26 | . 26 . Fabricators . | . . . Repair Stations 3 | . 3 . Recycling Units 5 | . 5 . Scanalyzers . | . . . Garrison Access . | . . . Terminal Hacks 7 | . 6 1 Robot Analysis 2 | . 2 . Prototype ID Bank 2 | . 2 . Open Door 1 | . . 1 Unreport Threat 1 | . 1 . Locate Traps 1 | . 1 . Fabricator Hacks . | . . . Repair Station Hacks 2 | . 2 . Scan Component 1 | . 1 . Repair 1 | . 1 . Recycling Unit Hacks . | . . . Scanalyzer . | . . . Garrison Access Hacks . | . . . Unauthorized Hacks 9 | . 9 . Terminals 7 | . 7 . Botnet 7 | . 7 . Fabricators . | . . . Repair Stations . | . . . Recycling Units 2 | . 2 . Reject 1 | . 1 . Mask 1 | . 1 . Scanalyzers . | . . . Garrison Access . | . . . Data Cores Recovered . | . . . Used . | . . . Hacking Detections 6 | . 6 . Full Trace Events . | . . . Feedback Events . | . . . Feedback Blocked . | . . . Robot Schematics Acquired . | . . . Robots Built . | . . . Authchips . | . . . Time . | . . . Total Robot Build Rating . | . . . Part Schematics Acquired . | . . . Parts Built . | . . . Authchips . | . . . Time . | . . . Total Part Build Rating . | . . . Parts Repaired 1 | . 1 . Time 26 | . 26 . Parts Recycled . | . . . Recycled Matter . | . . . Retrieved Matter . | . . . Retrieved Components . | . . . Parts Scanalyzed . | . . . Part Schematics Acquired . | . . . Parts Damaged . | . . . Bothacking | -11 -10 -10 ------------ Run | Yrd Mat Min Used RIF Installer . | . . . Robots Hacked . | . . . Non-combat . | . . . Combat . | . . . Robot Hacks Applied . | . . . Relay Couplers Released . | . . . Fabnet Peak Effective % . | . . . Robots Rewired . | . . . Allies Hacked . | . . . Hacks Repelled . | . . . Allies | -11 -10 -10 -------- Run | Yrd Mat Min Total Allies . | . . . Largest Group . | . . . Highest-Rated Group . | . . . Highest-Rated Ally . | . . . Total Orders . | . . . Ally Attacks . | . . . Total Damage . | . . . Kills . | . . . Allies Corrupted . | . . . Allies Melted . | . . . Intel | -11 -10 -10 ------- Run | Yrd Mat Min Robot Analysis Total 2 | . 2 . Derelict Logs Recovered 1 | . . 1 Drone Launches . | . . . Drone Recoveries . | . . . Exploration | -11 -10 -10 ------------- Run | Yrd Mat Min Turns Passed 3197 | 70 1863 1264 Spaces Moved 1336 | 26 913 397 Core . | . . . Treads 1314 | 4 913 397 Legs 22 | 22 . . Wheels . | . . . Hover . | . . . Flight . | . . . Fastest Speed 120 | 120 160 240 Average Speed 190 | 126 169 240 Slowest Speed 320 | 160 240 320 Overloaded Moves . | . . . Propulsion Burnouts . | . . . Robots Hopped . | . . . Cave-ins Triggered . | . . . Exploration Rate (%) 56 | 4 101 65 Regions Visited 2 Branch Regions 1 Pre-discovered Areas 1 | . . 1 Known Exits Taken . | . . . Unknown Exits Taken 2 | 1 1 . Scrap Searched 2 | . . 2 Spaces Dug 6 | . 6 . Terrain Destroyed 17 | . 6 11 Melee . | . . . Projectile 11 | . . 11 AOE 6 | . 6 . Terrain Rammed . | . . . Walls Destroyed . | . . . Machines Disabled . | . . . Actions | -11 -10 -10 --------- Run | Yrd Mat Min Total 1805 | 52 1095 658 Wait 290 | 11 54 225 Move 1334 | 25 912 397 Hop . | . . . Pick Up 23 | . 21 2 Fast Attach 3 | 1 1 1 Attach 2 | 2 . . Detach . | . . . Swap 20 | . 18 2 Drop 22 | 4 13 5 Fire 106 | 8 72 26 Melee . | . . . Ram . | . . . Kick 1 | 1 . . Crush 4 | . 4 . Escape Stasis . | . . . Rewire . | . . . Trap . | . . . Miscellaneous . | . . . Route ------- -11/Scrapyard -10/Materials (discovered 6 exits: [*Mat x3] / *Min x2 / [*Sub]) -10/Mines (discovered 2 exits: [*Mat] / [*Exi]) History --------- Turn | Location | Event 1 | -11/Scrapyard | Discovered new exit (range 3) 71 | -11/Scrapyard | Entered Materials 75 | -10/Materials | Discovered new exit (range 10) 312 | -10/Materials | Build established: Mutant 480 | -10/Materials | Discovered new exit (range 10) 627 | -10/Materials | Central database locked down 829 | -10/Materials | Discovered new exit (range 8) 968 | -10/Materials | Discovered new exit (range 17) 1088 | -10/Materials | Core integrity fell below 50% 1128 | -10/Materials | Discovered new exit (range 10) 1413 | -10/Materials | Discovered new exit (range 10) 1770 | -10/Materials | Repaired Lgt. Treads 1934 | -10/Materials | Entered Mines 2083 | -10/Mines | Discovered new exit (range 3) 2284 | -10/Mines | Deemed a non-threat by the Exiles lab entrance 2284 | -10/Mines | Discovered new exit (range 5) 2446 | -10/Mines | Learned location of Storage (-9) 2476 | -10/Mines | Assembled infested the area 2481 | -10/Mines | Assisted by a Guerilla fighting off Assembled 2492 | -10/Mines | Found the Drone Emporium 2502 | -10/Mines | Found Prototype Device 2805 | -10/Mines | Core integrity fell below 20% 3198 | -10/Mines | Destroyed by as-94178 with Assembled Heavy Rifle Last Messages --------------- 03090_ HV Slug penetrates Earth. 03095_ as-53379 knocked back. 03098_ HV Slug penetrates as-53379. 03098_ as-53379 destroyed. 03101_ Acquired 12 matter. 03106_ Acquired 10 matter. 03113_ Acquired 18 matter. 03115_ Acquired 21 matter. 03127_ HV Slug penetrates as-44488. 03127_ as-44488 suffers critical hit (Destroy). 03127_ Destroyed Asb. Rifle. 03127_ HV Slug penetrates Earth. 03162_ as-66539 knocked back. 03168_ HV Slug penetrates as-66539. 03168_ Destroyed Asb. Hover Unit. 03168_ as-66539 knocked back. 03171_ HV Slug penetrates as-66539. 03171_ as-66539 suffers critical hit (Destroy). 03171_ as-66539 destroyed. 03171_ Machine disabled. Map ----- +----------------------------------------------------+ | #??????##### #### ##??????????????????????????? | | #?????## # #??????????????????????????? | | #?????# #??????????????????????????? | | ##????# ##??????????????????????????? | | #????# #####???????????????????????????? | | #????# ###?####??????????????????????????? | | #????# * ##??# ##?????????????????????????? | | #????## | =#### ##????????????????????????? | | #?????# """ #????????????????????????? | | #?????# ####! """ #????????????????????????? | | ##?????## ##??# """ #????????????????????????? | | ????????### #???# ##????????????????????????? | | ??????????# #???# ###?????????????????????????? | | ??????????# #???## ######???????????????????????? | | ??????????# ##????##### ##??????????????????????? | | ########### "#???#### #???????????????? #???? | | ## ##???# ## #???????????????? #??? | | ######## ## "##?## # #???#????????????? ??? | | ???????#*## " ### ## "#?? #????????????? #?? | | ########*## #### # %% ## ###"! ]#??????? ?? | | %] = ! ] " " !#????????? ?? | | %! ! ### "### #%* ####???????????? ## | | ##########?#%# # =!! ######??????????????? | | #??????????# # ## #???????????????????? | | #??????????# ### # #???????????????????? | | #??????????# #?###### @#????????????????????# | | #?????????# #??????## #??????????????????## | | #??????#### #???????# #?????????????????## | | #??????# #???????# #????????????????# | | ##??????# ####??????? ???????????????# | | ####???????# #?????????? ??????????????# | | ?########### #?????????? a ?????????????#### | | ?# #??????????# %=#????????????????# | | ## ######### #??????????## ##???????????????# | | #???????# #????????????# |#???????????????# | | # ##???????# #????????????? !=%#???????????????# | | ############ #????????????? !![=#???????????????# | | ???# #????####?????#**%=#???????????????# | | ???# ############## #########*!##????????"?????# | | ???# #???????# #??%!=????????""?????# | | ???# #???????# ### #### #??!!#?????? ???????# | | ???# #???????# #?## ##?# #?? #???## ????????# | | ##?# #???????# #??## ### #?? #?? ??????????## | | ### #???????# #???## ##=### ### #????????????# | | ## #???????# #????## = #????????????# | | ######### #?????## #### ## #????????????# | | #?????## ##?##[ ^#^ ##????????????# | | ##########?????# ##?# # # #?????????????? | | ###??????????????# #?# # # ^#?????????????? | | ##????????????????## #?# #???#####?????? | +----------------------------------------------------+ Best States ------------- Heat Dissipation 25 Energy Generation 18 Energy Capacity 310 Matter Stores 300 Matter Capacity 300 Sight Range 18 Terrain Scan Range 16 Terrain Scan Density 10 Evasion (%) 55 Recoil Reduction 2 Item Schematics ----------------- None Robot Schematics ------------------ None Fabricated ------------ Nothing Alien Tech Used ----------------- None Achievements -------------- None Challenges ------------ None Game ------ Seed EnergySlugPod Manual? 0 Play Time 00:16:17 Cumulative 138.6 hours Start 2024.09.21 @ 15:12:28 End 2024.09.21 @ 15:35:41 Sessions 1 Manual Loads 0 Difficulty Rogue Special Mode None Game No. 187 Rogue 187 Adventurer 0 Explorer 0 Win Type - Total 1 Types 1/0/0/0/0/0/0/0/0 Lore% 50 Gallery% 60 Achievement% 48 Wizard Run 0 Options --------- Layout 0 ASCII 0 Keyboard 0 Movement Mouse Keybinds 1 Fullscreen 1 Font 18/TerminusBold Map View 76x50 Zoom Use 0% Tactical HUD 1 Map Filters NONE Filters NONE Steam 1 RUN: 1519e9f0-8084-4a10-89b2-2c1d934b398b